bitfinex/quotes_SOLUSD_20250108
["timestamp","ask_amount","ask_price","bid_price","bid_amount"]
[1736304415247,0.75162438,201.04,200.93,14.8462172]
[1736304415448,20.12549,201.02,200.9,0.74622923]
[1736304415656,0.12549,201.0,200.91,14.8462172]
[1736304415968,0.12549,201.0,200.96,14.8462172]
[1736304416147,0.62613438,201.06,200.91,0.74642158]
[1736304416350,0.75162438,201.04,200.94,14.8462172]
[1736304416753,0.12549,201.04,200.98,14.8462172]
[1736304416970,0.12549,201.04,201.0,14.8462172]
[1736304417745,0.12549,201.04,201.02,14.8462172]
[1736304417964,2.28,201.07,201.03,14.8462172]
[1736304418254,0.12549,201.06,201.02,14.8462172]
[1736304420250,0.12549,201.06,200.97,0.74596164]
[1736304420550,0.12549,201.06,201.02,14.8462172]
[1736304421163,0.12549,201.06,201.01,14.8462172]
[1736304421363,0.12549,201.06,201.0,23.776884]
[1736304421565,0.12549,201.06,201.01,14.8462172]
[1736304421758,0.12549,201.06,200.98,0.74605889]
[1736304421759,0.12549,201.06,201.0,14.8462172]
[1736304421958,0.12549,201.06,200.99,14.8462172]
[1736304422879,0.12549,201.06,200.95,6.1351]
[1736304422880,0.12549,201.06,200.98,14.8462172]
[1736304424153,0.12549,201.06,200.95,6.88130056]
[1736304424154,0.12549,201.02,200.96,14.8462172]
[1736304424360,0.75162438,201.02,200.93,14.8462172]
[1736304424673,0.12549,201.02,200.93,14.8462172]
[1736304424886,0.12549,201.02,200.94,14.8462172]
[1736304425561,0.62613438,201.03,200.95,14.8462172]
[1736304425562,0.12549,201.03,200.95,14.8462172]
[1736304425979,0.12549,201.03,200.96,14.8462172]
[1736304426163,22.30503438,201.05,200.97,14.8462172]
[1736304426370,22.30503438,201.05,200.96,14.8462172]
[1736304426577,0.12549,201.04,200.94,14.8462172]
[1736304426883,0.12549,201.04,200.95,14.8462172]
[1736304427455,0.12549,201.04,200.96,14.8462172]
[1736304427663,2.28,201.03,201.0,14.8462172]
[1736304427980,0.12549,201.02,200.92,0.7460742]
[1736304428160,0.12549,201.02,200.96,14.8462172]
[1736304428361,0.12549,201.02,200.95,14.8462172]
[1736304428860,0.75162438,201.02,200.92,14.8462172]
[1736304429060,0.75162438,201.02,200.9,21.0579172]
[1736304429286,0.75162438,201.02,200.91,15.59262084]
[1736304429475,0.75162438,201.02,200.91,14.8462172]
[1736304429679,0.75162438,201.02,200.9,14.8462172]
[1736304430278,0.75162438,201.02,200.91,14.8462172]
[1736304430791,0.75162438,201.02,200.92,14.8462172]
[1736304431080,0.75162438,201.02,200.95,14.8462172]
[1736304431081,0.12549,201.02,200.95,14.8462172]
[1736304431273,0.12549,201.02,200.96,15.59247633]
[1736304431688,0.12549,201.02,200.97,38.6231012]
[1736304431888,1.5624,201.08,200.99,14.8462172]
[1736304432076,0.12549,201.06,200.99,14.8462172]
[1736304434464,2.28,201.07,201.02,14.8462172]
[1736304434664,2.28,201.07,201.03,14.8462172]
[1736304434883,43.902374,201.13,201.02,14.8462172]
[1736304435158,23.902374,201.11,201.02,14.8462172]
[1736304436597,24.52850838,201.11,201.01,14.8462172]
[1736304437999,0.12549,201.07,200.99,14.8462172]
[1736304438182,0.12549,201.07,200.98,15.59222315]
[1736304438506,0.12549,201.07,200.99,14.8462172]
[1736304438672,0.12549,201.05,200.99,14.8462172]
[1736304440367,2.28,201.07,201.01,14.8462172]
[1736304440571,2.28,201.08,201.04,14.8462172]
[1736304440769,2.28,201.09,201.04,14.8462172]
[1736304440968,0.12549,201.08,201.04,14.8462172]
[1736304441183,0.12549,201.08,201.07,14.8462172]
[1736304441387,0.12549,201.1,201.07,14.8462172]
[1736304441582,0.12549,201.1,201.06,14.8462172]
[1736304441793,0.12549,201.1,201.04,14.8462172]
[1736304441999,20.12549,201.1,201.02,14.8462172]
[1736304442376,20.12549,201.1,201.03,14.8462172]
[1736304443890,0.12549,201.05,200.98,14.8462172]
[1736304444076,0.12549,201.03,200.98,14.8462172]
[1736304444275,0.12549,201.03,200.99,14.8462172]
[1736304444476,0.12549,201.03,200.99,15.592306]
[1736304444682,0.12549,201.03,201.0,14.8462172]
[1736304444913,0.12549,201.03,200.97,7.7052]
[1736304444914,2.28,201.06,201.02,14.8462172]
[1736304445095,2.28,201.06,201.03,14.8462172]
[1736304445295,0.12549,201.05,201.04,15.59214177]
[1736304445480,0.12549,201.05,201.03,14.8462172]
[1736304445887,0.12549,201.11,201.02,15.59214709]
[1736304448681,0.12549,201.11,201.02,0.74592989]
[1736304449606,0.12549,201.11,201.02,15.59214709]
[1736304450008,20.12549,201.08,200.99,15.59213652]
[1736304450508,20.12549,201.08,201.01,14.8462172]
[1736304451482,20.12549,201.08,201.0,15.59221736]
[1736304452808,0.12549,201.06,201.0,15.59221736]
[1736304455201,0.12549,201.06,201.0,14.8462172]
[1736304455401,0.12549,201.06,200.98,15.59222754]
[1736304455603,24.52850838,201.06,200.96,14.8462172]
[1736304455808,23.902374,201.06,200.96,14.8462172]
[1736304455990,23.902374,201.06,200.97,14.8462172]
[1736304456180,23.902374,201.06,200.98,0.74612819]
[1736304456181,0.12549,201.06,200.98,0.74612819]
[1736304456387,0.12549,201.06,200.99,14.8462172]
[1736304457614,0.12549,201.06,200.98,15.5922788]
[1736304457819,0.12549,201.06,200.98,14.8462172]
[1736304458300,0.12549,201.06,200.99,15.59228303]
[1736304458699,0.12549,201.06,200.98,14.8462172]
[1736304458899,0.12549,201.06,200.99,0.74605079]
[1736304459515,0.12549,201.06,200.98,14.8462172]
[1736304460617,0.12549,201.06,200.97,14.8462172]
[1736304460792,0.12549,201.06,200.98,14.8462172]
[1736304461419,0.12549,201.06,200.97,10.26053756]
[1736304461713,0.12549,201.03,200.95,0.74608292]
[1736304462689,0.12549,201.03,200.95,10.26053253]
[1736304463820,0.12549,201.03,200.93,10.26063505]
[1736304463994,23.902374,201.03,200.91,10.26063505]
[1736304464306,0.12549,200.99,200.92,9.51444961]
[1736304464511,2.40549,200.99,200.92,9.51444961]
[1736304464897,2.40549,200.99,200.92,10.26074343]
[1736304466119,2.40549,200.99,200.92,9.51444961]
[1736304466513,2.40549,200.99,200.91,9.51444961]
[1736304469092,2.40549,200.99,200.89,0.74631687]
[1736304469296,2.40549,200.99,200.89,10.26076648]
[1736304469510,2.40549,200.99,200.88,16.51657562]
[1736304469714,2.40549,200.99,200.89,9.51444961]
[1736304470593,2.40549,200.99,200.9,9.51444961]
[1736304471019,2.40549,200.99,200.89,9.51444961]
[1736304471203,2.40549,200.99,200.9,10.26085479]
[1736304471806,2.40549,200.99,200.89,10.26081775]
[1736304473539,0.12549,200.99,200.93,9.51444961]
[1736304473707,2.40549,200.99,200.93,9.51444961]
[1736304474401,2.40549,200.99,200.94,10.26073646]
[1736304474997,2.40549,201.01,200.94,10.26073646]
[1736304475617,2.40549,201.01,200.95,9.51444961]
[1736304475818,2.40549,201.01,200.95,10.26066176]
[1736304476622,2.40549,201.01,200.94,9.51444961]
[1736304477013,2.40549,201.01,200.92,9.51444961]
[1736304478634,2.40549,201.01,200.93,9.51444961]
[1736304478926,2.40549,201.01,200.94,0.74628687]
[1736304479446,2.40549,201.01,200.93,9.51444961]
[1736304480305,2.40549,201.01,200.92,9.51444961]
[1736304480942,2.40549,201.01,200.93,10.26075667]
[1736304482230,2.40549,201.01,200.91,9.51444961]
[1736304482620,0.12549,200.99,200.89,9.51444961]
[1736304482826,1.5453,200.98,200.88,16.5165038]
[1736304483040,0.12549,200.97,200.88,16.5165038]
[1736304483230,20.12549,200.97,200.88,16.5165038]
[1736304483410,20.12549,200.97,200.89,9.51444961]
[1736304484268,0.12549,200.95,200.85,0.74643002]
[1736304484532,0.12549,200.93,200.85,10.26087963]
[1736304485045,0.12549,200.93,200.86,9.51444961]
[1736304485533,0.12549,200.93,200.86,10.26095778]
[1736304486347,0.12549,200.93,200.86,9.51444961]
[1736304486734,0.12549,200.93,200.87,9.51444961]
[1736304487932,1.5453,200.98,200.9,9.51444961]
[1736304488239,0.12549,200.95,200.92,9.51444961]
[1736304489116,0.12549,200.95,200.91,10.26081132]
[1736304489317,0.12549,200.95,200.91,0.74636171]
[1736304490557,0.12549,200.95,200.93,9.51444961]
[1736304490714,0.12549,200.95,200.92,9.51444961]
[1736304491426,0.12549,200.95,200.9,9.51444961]
[1736304491761,0.12549,200.95,200.9,10.26082607]
[1736304491934,0.12549,200.95,200.91,9.51444961]
[1736304494038,0.12549,200.95,200.93,9.51444961]
[1736304494244,0.12549,200.95,200.92,10.26079665]
[1736304494542,0.12549,200.99,200.93,9.51444961]
[1736304494737,0.12549,200.99,200.94,0.7462291]
[1736304495341,1.5641,201.03,200.95,9.51444961]
[1736304495533,1.6373,201.07,200.97,9.51444961]
[1736304495844,0.12549,201.05,200.97,9.51444961]
[1736304497844,2.28,201.06,201.0,9.51444961]
[1736304498418,2.28,201.06,201.0,10.26044671]
[1736304499130,0.12549,201.05,201.0,10.26044671]
[1736304499329,0.12549,201.05,201.02,9.51444961]
[1736304499536,2.28,201.09,201.03,10.26030508]
[1736304499846,0.12549,201.08,201.03,10.26030508]
[1736304500143,0.12549,201.08,201.03,0.74585547]
[1736304500351,0.12549,201.08,201.04,0.74590304]
[1736304500725,0.12549,201.08,201.04,10.26035265]
[1736304500927,0.12549,201.08,201.02,9.51444961]
[1736304501762,1.6226,201.12,201.05,9.51444961]
[1736304501763,0.12549,201.11,201.05,9.51444961]
[1736304502060,0.12549,201.1,201.06,0.7457786]
[1736304502265,0.12549,201.1,201.04,9.51444961]
[1736304502422,0.12549,201.1,201.02,10.26025555]
[1736304502820,0.12549,201.1,201.03,9.51444961]
[1736304503330,0.12549,201.1,201.04,10.26031098]
[1736304503635,0.12549,201.1,201.05,9.51444961]
[1736304503832,0.12549,201.1,201.06,10.26024623]
[1736304504335,1.6161,201.17,201.08,9.51444961]
[1736304504540,2.28,201.16,201.09,10.26012712]
[1736304504756,2.40549,201.16,201.09,10.26012712]
[1736304505324,2.40549,201.16,201.09,0.74567751]
[1736304505959,2.40549,201.16,201.09,10.26012712]
[1736304506156,0.12549,201.16,201.09,10.26012712]
[1736304506374,2.40549,201.16,201.09,10.26012712]
[1736304507059,2.40549,201.16,201.08,9.51444961]
[1736304507261,2.40549,201.16,201.07,9.51444961]
[1736304508459,2.40549,201.16,201.06,11.76439118]
[1736304508664,2.40549,201.16,201.07,9.51444961]
[1736304509372,2.40549,201.16,201.08,0.74575337]
[1736304510480,2.40549,201.16,201.08,10.26020298]
[1736304513083,0.12549,201.11,200.94,12.4414]
[1736304513252,0.12549,201.07,200.98,9.51444961]
[1736304513455,0.12549,201.05,200.98,9.51444961]
[1736304513874,0.12549,201.05,200.95,0.74598694]
[1736304513875,0.12549,201.05,200.96,9.51444961]
[1736304514083,0.12549,201.05,200.95,0.74598694]
[1736304514293,0.81138901,201.05,200.94,10.26063468]
[1736304515171,0.12549,201.05,200.94,10.26063468]
[1736304515476,0.12549,201.05,200.95,14.87153325]
[1736304516175,0.12549,201.05,200.96,14.87153325]
[1736304516866,0.81138901,201.05,200.94,15.61768054]
[1736304519180,0.12549,201.05,200.94,15.61768054]
[1736304520877,0.12549,201.05,200.95,14.87153325]
[1736304523482,0.12549,201.05,200.94,15.61768054]
[1736304524293,0.12549,201.05,200.95,14.87153325]
[1736304524587,0.12549,201.05,200.94,15.61768054]
[1736304525769,0.12549,201.01,200.93,14.87153325]
[1736304525972,0.12549,201.03,200.93,14.87153325]
[1736304526167,0.12549,201.03,200.91,0.74619696]
[1736304526168,20.0,201.0,200.91,15.61773021]
[1736304526375,2.40549,200.99,200.9,14.87153325]
[1736304526673,2.40549,200.99,200.89,15.61783295]
[1736304526674,3.92399,200.99,200.89,15.61783295]
[1736304526874,3.92399,200.99,200.9,14.87153325]
[1736304528895,4.60988901,200.99,200.89,15.61783295]
[1736304529098,3.92399,200.99,200.89,15.61783295]
[1736304530404,0.68589901,200.98,200.89,14.87153325]
[1736304530590,0.12549,200.97,200.87,15.61795062]
[1736304534305,0.12549,200.98,200.87,15.61795062]
[1736304534507,0.12549,200.98,200.88,14.87153325]
[1736304535310,0.81138901,200.98,200.87,15.617987]
[1736304535679,0.12549,200.98,200.87,15.617987]
[1736304536705,0.12549,200.98,200.88,14.87153325]
[1736304536911,0.12549,200.98,200.91,14.87153325]
[1736304537280,21.5185,200.99,200.92,9.52127401]
[1736304537281,1.5185,200.99,200.92,9.52127401]
[1736304537617,2.28,200.98,200.93,9.52127401]
[1736304538407,0.12549,200.97,200.93,10.26751675]
[1736304539414,0.12549,200.97,200.91,23.776884]
[1736304539725,0.12549,200.97,200.94,0.74624605]
[1736304540221,0.12549,200.97,200.95,9.52127401]
[1736304540395,0.12549,200.97,200.96,0.74615478]
[1736304540718,0.12549,201.0,200.96,10.26742879]
[1736304541401,0.12549,201.0,200.9,0.74612343]
[1736304541606,0.12549,201.0,200.9,10.26739744]
[1736304542017,0.12549,201.0,200.91,9.52127401]
[1736304542699,0.12549,201.0,200.92,9.52127401]
[1736304543197,0.12549,201.0,200.91,10.26760235]
[1736304543394,0.12549,200.96,200.87,10.26765588]
[1736304544089,0.12549,200.98,200.87,10.26765588]
[1736304544427,0.12549,200.96,200.88,9.52127401]
[1736304544613,0.12549,200.96,200.89,0.74645177]
[1736304545113,20.0,201.02,200.9,9.52127401]
[1736304545289,20.68589901,201.02,200.9,9.52127401]
[1736304545488,0.12549,200.99,200.89,9.52127401]
[1736304545690,0.12549,200.99,200.92,9.52127401]
[1736304545915,0.12549,200.99,200.93,9.52127401]
[1736304546317,2.28,201.01,200.94,9.52127401]
[1736304546615,0.12549,201.0,200.95,9.52127401]
[1736304546814,0.12549,201.0,200.94,0.74629527]
[1736304547121,0.12549,201.0,200.93,10.26753958]
[1736304547323,0.12549,201.03,200.95,9.52127401]
[1736304547620,0.12549,200.98,200.95,9.52127401]
[1736304548314,0.12549,200.98,200.97,9.52127401]
[1736304548619,0.12549,201.01,200.97,9.52127401]
[1736304548807,0.12549,201.01,200.98,9.52127401]
[1736304549614,2.40549,201.03,200.98,9.52127401]
[1736304549810,2.40549,201.03,200.9,282.26198004]
[1736304549811,0.12549,201.03,201.0,9.52127401]
[1736304550127,2.28,201.05,201.01,9.52127401]
[1736304550615,0.12549,201.04,201.01,9.52127401]
[1736304551196,0.12549,201.08,201.01,9.52127401]
[1736304551519,0.12549,201.06,201.01,14.86270368]
[1736304551908,0.12549,201.06,201.02,14.86270368]
[1736304552227,44.82,201.12,201.04,14.86270368]
[1736304552524,2.28,201.11,201.07,14.86270368]
[1736304552819,2.28,201.11,201.08,0.74575168]
[1736304552995,0.12549,201.1,201.08,0.74575168]
[1736304553704,0.12549,201.13,201.09,14.86270368]
[1736304553923,0.12549,201.13,201.1,15.60834032]
[1736304555222,1.5217,201.19,201.09,14.86270368]
[1736304555223,0.12549,201.18,201.09,14.86270368]
[1736304555526,0.12549,201.16,201.09,14.86270368]
[1736304556625,0.12549,201.18,201.09,14.86270368]
[1736304556797,0.12549,201.14,201.09,14.86270368]
[1736304557122,0.12549,201.14,201.06,0.74563916]
[1736304557322,0.12549,201.14,201.07,14.86270368]
[1736304557534,0.12549,201.14,201.08,0.74568618]
[1736304557692,0.12549,201.14,201.08,15.60838986]
[1736304557895,0.12549,201.14,201.07,15.60839413]
[1736304558304,0.12549,201.14,201.08,14.86270368]
[1736304558516,0.12549,201.14,201.09,15.60835696]
[1736304560718,0.12549,201.14,201.1,14.86270368]
[1736304560925,0.12549,201.14,201.1,15.60831545]
[1736304561910,0.12549,201.14,201.1,14.86270368]
[1736304563508,0.12549,201.14,201.08,14.86270368]
[1736304563920,0.12549,201.14,201.07,14.86270368]
[1736304564231,0.12549,201.14,201.08,15.60840354]
[1736304564997,0.12549,201.14,201.09,14.86270368]
[1736304565230,0.12549,201.14,201.1,0.74566375]
[1736304565713,0.12549,201.14,201.09,0.74569312]
[1736304569031,0.12549,201.14,201.07,14.86270368]
[1736304569239,0.12549,201.14,201.06,0.74569412]
[1736304570839,0.12549,201.14,201.07,23.776884]
[1736304572430,0.12549,201.14,201.05,83.0]
[1736304572634,0.12549,201.14,201.06,23.776884]
[1736304572828,0.12549,201.14,201.05,83.0]
[1736304573014,0.12549,201.1,201.05,83.0]
[1736304573210,0.81138901,201.1,200.98,21.47380368]
[1736304573408,0.81138901,201.1,200.98,16.87189327]
[1736304573819,0.81138901,201.1,200.99,33.29163614]
[1736304574435,0.12549,201.07,200.99,33.29163614]
[1736304574641,0.12549,201.05,200.98,0.74604113]
[1736304574827,0.12549,201.05,200.96,94.82969813]
[1736304575131,0.12549,201.05,200.97,10.26081091]
[1736304575316,0.12549,201.05,200.98,23.776884]
[1736304576433,0.12549,201.05,200.98,33.29163614]
[1736304577230,0.12549,201.05,201.01,23.776884]
[1736304577429,0.12549,201.05,201.01,24.52284206]
[1736304577629,0.12549,201.05,201.01,23.776884]
[1736304578023,0.12549,201.05,201.0,23.776884]
[1736304578320,0.12549,201.05,200.99,23.776884]
[1736304578520,0.12549,201.05,200.96,83.0]
[1736304578918,0.12549,201.05,200.94,9.51475214]
[1736304579118,0.12549,201.05,200.94,10.26094476]
[1736304579539,0.81138901,201.05,200.95,23.776884]
[1736304579735,0.12549,201.03,200.94,23.776884]
[1736304581250,0.12549,201.03,200.95,0.74623277]
[1736304581429,0.12549,201.03,200.95,10.26098491]
[1736304581738,0.12549,201.03,200.94,33.29163614]
[1736304581923,0.12549,201.03,200.94,23.776884]
[1736304582341,0.12549,201.03,200.93,15.62625214]
[1736304582522,0.12549,201.01,200.91,20.74626126]
[1736304582722,0.12549,201.01,200.92,23.776884]
[1736304582936,0.12549,201.01,200.91,29.51475214]
[1736304583131,0.12549,201.01,200.91,20.0]
[1736304583438,0.12549,201.01,200.88,15.93485214]
[1736304584340,0.12549,201.01,200.89,23.776884]
[1736304584718,0.12549,201.01,200.89,34.03805703]
[1736304584919,0.12549,201.01,200.91,23.776884]
[1736304585127,20.12549,201.01,200.91,23.776884]
[1736304585645,0.12549,200.99,200.91,23.776884]
[1736304585945,0.12549,200.97,200.91,23.776884]
[1736304586142,0.12549,200.97,200.9,9.51475214]
[1736304586439,0.12549,200.97,200.92,9.51475214]
[1736304587240,0.12549,200.97,200.91,9.51475214]
[1736304590746,0.12549,200.97,200.92,9.51475214]
[1736304591548,0.12549,200.97,200.93,0.74627404]
[1736304591723,0.12549,200.97,200.92,9.51475214]
[1736304591923,0.12549,200.97,200.91,33.29163614]
[1736304592452,0.12549,200.97,200.92,0.74631514]
[1736304593547,0.12549,200.97,200.93,23.776884]
[1736304600258,0.12549,200.97,200.88,89.4201]
[1736304600259,0.12549,200.97,200.9,9.51475214]
[1736304601554,0.12549,200.97,200.89,10.2610631]
[1736304602438,0.12549,200.95,200.85,1.5788]
[1736304602637,0.12549,200.95,200.9,9.51475214]
[1736304602837,0.12549,200.95,200.91,9.51475214]
[1736304603939,0.12549,200.95,200.87,23.776884]
[1736304604140,0.12549,200.95,200.88,9.51475214]
[1736304604465,0.12549,200.95,200.89,23.776884]
[1736304604853,0.12549,200.95,200.89,33.29163614]
[1736304605767,0.12549,200.97,200.89,33.29163614]
[1736304605959,0.12549,200.95,200.89,33.29163614]
[1736304606463,2.28,200.98,200.9,9.51475214]
[1736304606663,0.12549,200.97,200.87,20.0]
[1736304606969,0.12549,200.97,200.89,23.776884]
[1736304607467,0.12549,200.97,200.89,33.29163614]
[1736304608269,0.12549,200.97,200.88,33.29163614]
[1736304609169,0.12549,200.97,200.89,9.51475214]
[1736304610573,0.81138901,200.97,200.86,20.0]
[1736304610779,0.81138901,200.97,200.87,9.51475214]
[1736304611478,20.0,200.96,200.87,9.51475214]
[1736304611682,0.12549,200.95,200.87,9.51475214]
[1736304614379,0.12549,200.95,200.88,33.29163614]
[1736304615050,0.12549,200.95,200.88,23.776884]
[1736304615255,0.12549,200.95,200.87,24.52338995]
[1736304615458,0.12549,200.95,200.87,34.03814209]
[1736304615679,0.12549,200.95,200.87,23.776884]
[1736304615883,0.12549,200.95,200.87,33.29163614]
[1736304617769,0.12549,200.95,200.87,23.776884]
[1736304618351,0.12549,200.95,200.87,33.29163614]
[1736304619872,0.12549,200.95,200.87,23.776884]
[1736304621474,0.12549,200.95,200.88,10.26126476]
[1736304623069,81.2,200.99,200.9,33.29163614]
[1736304623271,1.5002,201.01,200.94,9.51475214]
[1736304623462,3.7802,201.01,200.94,33.29163614]
[1736304623647,0.12549,201.0,200.95,23.776884]
[1736304623852,0.12549,201.0,200.96,9.51475214]
[1736304624372,1.5483,201.06,200.99,9.51475214]
[1736304624692,0.12549,201.05,201.01,9.51475214]
[1736304625192,2.28,201.07,201.03,23.776884]
[1736304625355,2.28,201.08,201.03,23.776884]
[1736304626257,0.12549,201.07,201.03,33.29163614]
[1736304626582,0.12549,201.07,201.04,9.51475214]
[1736304626756,0.12549,201.08,201.04,9.51475214]
[1736304627455,0.12549,201.1,201.05,9.51475214]
[1736304627978,0.12549,201.1,201.04,9.51475214]
[1736304628389,2.28,201.11,201.05,10.26062175]
[1736304629457,0.12549,201.1,200.99,6.97324336]
[1736304629656,0.81138901,201.1,200.97,9.51475214]
[1736304629983,20.12549,201.08,200.98,23.776884]
[1736304630165,20.81138901,201.08,200.98,23.776884]
[1736304630366,20.12549,201.08,201.0,23.776884]
[1736304630770,20.12549,201.08,201.0,33.29163614]
[1736304633086,20.12549,201.08,201.0,9.51475214]
[1736304633375,0.12549,201.06,200.96,20.0]
[1736304633580,0.12549,201.03,200.94,0.74602283]
[1736304633760,20.0,201.04,200.91,1.6052]
[1736304633761,0.12549,201.01,200.91,1.6052]
[1736304633965,0.12549,201.01,200.88,6.99684979]
[1736304633966,0.12549,200.99,200.88,6.99684979]
[1736304634157,0.12549,200.99,200.89,9.51475214]
[1736304634479,0.12549,200.99,200.9,23.776884]
[1736304634987,0.12549,200.99,200.88,16.51160193]
[1736304634988,0.12549,200.97,200.89,23.776884]
[1736304636290,20.12549,200.99,200.89,33.29163614]
[1736304636660,20.12549,200.99,200.9,9.51475214]
[1736304637670,20.12549,200.99,200.89,34.03802334]
[1736304637983,0.12549,200.97,200.89,33.29163614]
[1736304638164,0.12549,200.97,200.89,23.776884]
[1736304639479,0.12549,200.96,200.89,23.776884]
[1736304639685,20.0,200.97,200.89,23.776884]
[1736304639686,0.12549,200.94,200.9,0.74641778]
[1736304640882,0.12549,200.94,200.89,33.29163614]
[1736304641280,0.12549,200.94,200.9,9.51475214]
[1736304643092,0.12549,200.94,200.88,9.51475214]
[1736304643266,0.12549,200.94,200.89,23.776884]
[1736304643574,0.12549,200.94,200.89,34.03811226]
[1736304643975,0.12549,200.94,200.89,33.29163614]
[1736304645975,0.12549,200.94,200.89,9.51475214]
[1736304646175,0.12549,200.94,200.89,10.26119955]
[1736304646376,0.12549,200.94,200.89,33.29163614]
[1736304647372,0.12549,200.94,200.9,23.776884]
[1736304647889,0.12549,200.94,200.88,9.51475214]
[1736304648080,0.12549,200.94,200.89,23.776884]
[1736304649070,0.12549,200.94,200.86,10.26123508]
[1736304649787,0.12549,200.94,200.87,33.29163614]
[1736304649983,81.2,200.98,200.9,9.51475214]
[1736304650200,81.2,200.98,200.91,33.29163614]
[1736304650371,2.28,200.99,200.93,23.776884]
[1736304650574,2.28,200.98,200.94,0.74627341]
[1736304650922,0.12549,200.97,200.95,23.776884]
[1736304651082,0.12549,200.97,200.93,9.51475214]
[1736304651283,3.9173,201.0,200.93,23.776884]
[1736304651284,0.12549,200.99,200.93,23.776884]
[1736304652676,0.12549,200.99,200.92,23.776884]
[1736304653198,0.81138901,200.99,200.89,9.51475214]
[1736304653386,0.81138901,200.99,200.9,33.29163614]
[1736304653695,0.12549,200.99,200.92,23.776884]
[1736304654004,0.81138901,200.99,200.92,23.776884]
[1736304656097,0.81138901,200.99,200.9,9.51475214]
[1736304656899,0.12549,200.99,200.9,9.51475214]
[1736304657378,0.12549,200.99,200.91,23.776884]
[1736304657573,0.12549,200.97,200.91,23.776884]
[1736304657782,0.81138901,200.97,200.89,9.51475214]
[1736304657974,0.12549,200.97,200.89,9.51475214]
[1736304658488,0.12549,200.97,200.9,23.776884]
[1736304658692,0.12549,200.97,200.9,33.29163614]
[1736304659510,0.12549,200.97,200.91,9.51475214]
[1736304659682,0.12549,200.97,200.9,9.51475214]
[1736304660783,0.12549,200.95,200.9,9.51475214]
[1736304661189,0.12549,200.95,200.91,9.51475214]
[1736304661389,0.12549,200.95,200.9,9.51475214]
[1736304663202,0.12549,200.95,200.87,23.776884]
[1736304663410,0.12549,200.95,200.84,2.35172253]
[1736304663618,0.81138901,200.95,200.84,10.26127467]
[1736304663987,0.81138901,200.95,200.85,33.29163614]
[1736304665497,0.81138901,200.95,200.87,9.51475214]
[1736304666505,0.81138901,200.95,200.87,23.776884]
[1736304668112,0.81138901,200.95,200.84,10.2613257]
[1736304668314,0.81138901,200.95,200.84,9.51475214]
[1736304668619,0.12549,200.91,200.84,9.51475214]
[1736304669322,0.12549,200.91,200.83,16.13885214]
[1736304669532,0.12549,200.91,200.84,9.51475214]
[1736304670303,0.12549,200.91,200.85,23.776884]
[1736304670603,0.12549,200.91,200.85,33.29163614]
[1736304670804,0.12549,200.91,200.84,33.29163614]
[1736304673831,0.12549,200.91,200.85,9.51475214]
[1736304674338,0.12549,200.89,200.85,9.51475214]
[1736304675036,0.12549,200.89,200.84,33.29163614]
[1736304675219,0.12549,200.89,200.8,0.74666459]
[1736304675529,0.81138901,200.89,200.76,0.7467894]
[1736304675736,0.12549,200.87,200.74,1.6144]
[1736304676029,0.12549,200.85,200.73,6.90345251]
[1736304676218,0.81138901,200.85,200.74,9.51475214]
[1736304677136,0.81138901,200.85,200.75,23.776884]
[1736304677649,0.81138901,200.85,200.67,83.0]
[1736304677650,0.12549,200.83,200.67,83.0]
[1736304677937,0.12549,200.81,200.72,9.51475214]
[1736304678113,0.12549,200.81,200.74,9.51475214]
[1736304678315,0.12549,200.81,200.75,9.51475214]
[1736304678639,0.12549,200.81,200.74,9.51475214]
[1736304678935,0.12549,200.81,200.73,33.29163614]
[1736304679136,0.81138901,200.81,200.73,9.51475214]
[1736304679436,0.81138901,200.81,200.73,23.776884]
[1736304679930,0.81138901,200.81,200.69,0.74704779]
[1736304679931,0.81138901,200.81,200.7,9.51475214]
[1736304680167,0.81138901,200.81,200.71,9.51475214]
[1736304680438,0.12549,200.81,200.72,9.51475214]
[1736304680735,0.12549,200.79,200.71,9.51475214]
[1736304680931,0.12549,200.79,200.72,23.776884]
[1736304681317,0.12549,200.81,200.72,23.776884]
[1736304681735,0.12549,200.79,200.72,23.776884]
[1736304682427,0.12549,200.81,200.72,23.776884]
[1736304682949,0.12549,200.79,200.69,9.51475214]